[Event "Titled Tuesday Blitz June 27 Early 2023"]
[White "Sanal, Vahap"]
[Black "Mekhitarian, Krikor Sevag"]
[WhiteFideId "6300545"]
[BlackFideId "2107660"]
[WhiteElo "2960"]
[BlackElo "2869"]
[Result "1-0"]
[Round "9"]
[TimeControl "180+2"]
[Date "2023.06.27"]
[WhiteClock "0:00:15"]
[BlackClock "0:00:00"]
[Board "7"]

1. e4 {[%clk 0:02:59]}  e6 {[%clk 0:02:59]} 2. d3 {[%clk 0:02:56]}  d5 {[%clk 0:02:59]} 3. Nd2 {[%clk 0:02:57]}  Nc6 {[%clk 0:02:58]} 4. g3 {[%clk 0:02:57]}  Nf6 {[%clk 0:02:55]} 5. Bg2 {[%clk 0:02:57]}  e5 {[%clk 0:02:56]} 6. Ngf3 {[%clk 0:02:54]}  dxe4 {[%clk 0:02:55]} 7. dxe4 {[%clk 0:02:53]}  Bc5 {[%clk 0:02:54]} 8. O-O {[%clk 0:02:54]}  O-O {[%clk 0:02:54]} 9. c3 {[%clk 0:02:54]}  a5 {[%clk 0:02:54]} 10. Qc2 {[%clk 0:02:50]}  b6 {[%clk 0:02:53]} 11. Nb3 {[%clk 0:02:41]}  Bd6 {[%clk 0:02:53]} 12. a4 {[%clk 0:02:39]}  h6 {[%clk 0:02:45]} 13. Re1 {[%clk 0:02:36]}  Be6 {[%clk 0:02:39]} 14. h3 {[%clk 0:02:30]}  Nd7 {[%clk 0:02:30]} 15. Be3 {[%clk 0:02:27]}  Kh7 {[%clk 0:02:15]} 16. Nbd2 {[%clk 0:02:21]}  Bc5 {[%clk 0:02:12]} 17. Bf1 {[%clk 0:02:14]}  Qe7 {[%clk 0:02:08]} 18. Bb5 {[%clk 0:02:12]}  Na7 {[%clk 0:02:06]} 19. Bf1 {[%clk 0:02:11]}  Rad8 {[%clk 0:02:01]} 20. Kh2 {[%clk 0:02:05]}  Bxe3 {[%clk 0:01:42]} 21. Rxe3 {[%clk 0:02:05]}  Nc8 {[%clk 0:01:40]} 22. Nc4 {[%clk 0:02:00]}  f6 {[%clk 0:01:35]} 23. Nh4 {[%clk 0:01:58]}  g6 {[%clk 0:01:35]} 24. Rae1 {[%clk 0:01:53]}  Nc5 {[%clk 0:01:31]} 25. b4 {[%clk 0:01:49]}  Nb7 {[%clk 0:01:13]} 26. f4 {[%clk 0:01:42]}  axb4 {[%clk 0:01:04]} 27. f5 {[%clk 0:01:43]}  gxf5 {[%clk 0:01:03]} 28. exf5 {[%clk 0:01:35]}  Bxc4 {[%clk 0:01:00]} 29. Bxc4 {[%clk 0:01:36]}  bxc3 {[%clk 0:00:52]} 30. Qxc3 {[%clk 0:01:37]}  Qc5 {[%clk 0:00:46]} 31. Ng6 {[%clk 0:01:34]}  Ncd6 {[%clk 0:00:41]} 32. Nxf8+ {[%clk 0:01:29]}  Rxf8 {[%clk 0:00:42]} 33. Re4 {[%clk 0:01:14]}  Nxe4 {[%clk 0:00:37]} 34. Rxe4 {[%clk 0:01:15]}  Nd6 {[%clk 0:00:36]} 35. Rh4 {[%clk 0:01:16]}  Qf2+ {[%clk 0:00:35]} 36. Kh1 {[%clk 0:01:16]}  Rd8 {[%clk 0:00:16]} 37. Bd5 {[%clk 0:01:05]}  Qf1+ {[%clk 0:00:14]} 38. Kh2 {[%clk 0:01:05]}  Qf2+ {[%clk 0:00:14]} 39. Bg2 {[%clk 0:01:05]}  c5 {[%clk 0:00:13]} 40. Qb3 {[%clk 0:00:59]}  Rd7 {[%clk 0:00:10]} 41. Qe6 {[%clk 0:00:58]}  Rg7 {[%clk 0:00:07]} 42. Rg4 {[%clk 0:00:59]}  Nxf5 {[%clk 0:00:04]} 43. Rxg7+ {[%clk 0:00:40]}  Nxg7 {[%clk 0:00:04]} 44. Qxb6 {[%clk 0:00:38]}  Nf5 {[%clk 0:00:04]} 45. Qb1 {[%clk 0:00:22]}  Qxg3+ {[%clk 0:00:03]} 46. Kh1 {[%clk 0:00:23]}  Qg6 {[%clk 0:00:01]} 47. Qb7+ {[%clk 0:00:15]}  Ng7 {[%clk 0:00:00]} 48. a5 {[%clk 0:00:15]} 1-0


[Site "https://www.chess.com"]

[Event "Titled Tuesday Blitz June 27 Early 2023"]
[White "Durarbayli, Vasif"]
[Black "Harshavardhan G B"]
[WhiteFideId "13402935"]
[BlackFideId "25059009"]
[WhiteElo "2927"]
[BlackElo "2820"]
[Result "1-0"]
[Round "9"]
[TimeControl "180+2"]
[Date "2023.06.27"]
[WhiteClock "0:00:08"]
[BlackClock "0:00:10"]
[Board "8"]

1. e4 {[%clk 0:03:00]}  c5 {[%clk 0:02:59]} 2. Nf3 {[%clk 0:03:00]}  d6 {[%clk 0:02:58]} 3. d4 {[%clk 0:03:00]}  cxd4 {[%clk 0:02:59]} 4. Nxd4 {[%clk 0:03:01]}  Nf6 {[%clk 0:02:59]} 5. Nc3 {[%clk 0:03:02]}  Nc6 {[%clk 0:02:59]} 6. f3 {[%clk 0:02:57]}  e5 {[%clk 0:02:58]} 7. Nb3 {[%clk 0:02:57]}  Be7 {[%clk 0:02:51]} 8. Be3 {[%clk 0:02:57]}  O-O {[%clk 0:02:51]} 9. Qd2 {[%clk 0:02:56]}  Be6 {[%clk 0:02:51]} 10. O-O-O {[%clk 0:02:56]}  a5 {[%clk 0:02:51]} 11. Bb5 {[%clk 0:02:56]}  Nb4 {[%clk 0:02:42]} 12. a3 {[%clk 0:02:50]}  d5 {[%clk 0:02:42]} 13. axb4 {[%clk 0:02:37]}  d4 {[%clk 0:02:42]} 14. Nxd4 {[%clk 0:02:23]}  axb4 {[%clk 0:02:32]} 15. Nb3 {[%clk 0:02:08]}  bxc3 {[%clk 0:02:13]} 16. Qxd8 {[%clk 0:02:05]}  Rfxd8 {[%clk 0:01:47]} 17. Rxd8+ {[%clk 0:02:03]}  Bxd8 {[%clk 0:01:47]} 18. Rd1 {[%clk 0:01:13]}  Bxb3 {[%clk 0:01:17]} 19. cxb3 {[%clk 0:01:12]}  Ra1+ {[%clk 0:01:16]} 20. Kc2 {[%clk 0:01:12]}  Rxd1 {[%clk 0:01:17]} 21. Kxd1 {[%clk 0:01:13]}  cxb2 {[%clk 0:01:17]} 22. Kc2 {[%clk 0:01:13]}  Nh5 {[%clk 0:01:12]} 23. Kxb2 {[%clk 0:01:00]}  g6 {[%clk 0:01:03]} 24. Kc3 {[%clk 0:00:57]}  f5 {[%clk 0:01:01]} 25. exf5 {[%clk 0:00:50]}  gxf5 {[%clk 0:01:02]} 26. Bd7 {[%clk 0:00:50]}  Ng7 {[%clk 0:01:01]} 27. Kc4 {[%clk 0:00:47]}  Kf7 {[%clk 0:00:59]} 28. Kd5 {[%clk 0:00:46]}  Kf6 {[%clk 0:00:48]} 29. Bf2 {[%clk 0:00:25]}  Bc7 {[%clk 0:00:42]} 30. h3 {[%clk 0:00:25]}  Nh5 {[%clk 0:00:39]} 31. Bh4+ {[%clk 0:00:22]}  Kg6 {[%clk 0:00:38]} 32. Be8+ {[%clk 0:00:21]}  Kh6 {[%clk 0:00:36]} 33. g3 {[%clk 0:00:18]}  e4 {[%clk 0:00:28]} 34. fxe4 {[%clk 0:00:19]}  Bxg3 {[%clk 0:00:16]} 35. Be7 {[%clk 0:00:11]}  fxe4 {[%clk 0:00:15]} 36. Kxe4 {[%clk 0:00:12]}  Bc7 {[%clk 0:00:14]} 37. h4 {[%clk 0:00:09]}  Kg7 {[%clk 0:00:10]} 38. Bxh5 {[%clk 0:00:08]} 1-0


[Site "https://www.chess.com"]

[Event "Titled Tuesday Blitz June 27 Early 2023"]
[White "Antipov, Mikhail Al."]
[Black "Aradhya, Garg"]
[WhiteFideId "4107012"]
[BlackFideId "25006746"]
[WhiteElo "2922"]
[BlackElo "2757"]
[Result "1-0"]
[Round "9"]
[TimeControl "180+2"]
[Date "2023.06.27"]
[WhiteClock "0:00:42"]
[BlackClock "0:00:09"]
[Board "9"]

1. e4 {[%clk 0:03:00]}  e5 {[%clk 0:03:00]} 2. Nf3 {[%clk 0:03:01]}  Nc6 {[%clk 0:03:01]} 3. Nc3 {[%clk 0:03:01]}  Nf6 {[%clk 0:03:00]} 4. Bb5 {[%clk 0:03:01]}  Nd4 {[%clk 0:02:58]} 5. Nxe5 {[%clk 0:03:01]}  c6 {[%clk 0:02:46]} 6. Be2 {[%clk 0:03:01]}  d5 {[%clk 0:02:18]} 7. exd5 {[%clk 0:02:58]}  Bf5 {[%clk 0:01:57]} 8. d3 {[%clk 0:02:52]}  Bd6 {[%clk 0:01:56]} 9. Nf3 {[%clk 0:02:48]}  Nxf3+ {[%clk 0:01:56]} 10. Bxf3 {[%clk 0:02:49]}  O-O {[%clk 0:01:56]} 11. dxc6 {[%clk 0:02:39]}  bxc6 {[%clk 0:01:56]} 12. O-O {[%clk 0:02:39]}  Qc7 {[%clk 0:01:52]} 13. g3 {[%clk 0:02:29]}  Rab8 {[%clk 0:01:53]} 14. Ne2 {[%clk 0:02:25]}  Rfe8 {[%clk 0:01:44]} 15. b3 {[%clk 0:02:22]}  Be5 {[%clk 0:01:44]} 16. Rb1 {[%clk 0:02:21]}  c5 {[%clk 0:01:43]} 17. Bf4 {[%clk 0:02:18]}  h6 {[%clk 0:01:42]} 18. Qd2 {[%clk 0:02:13]}  Re7 {[%clk 0:01:36]} 19. Rbe1 {[%clk 0:02:12]}  Rbe8 {[%clk 0:01:35]} 20. Bxe5 {[%clk 0:01:34]}  Qxe5 {[%clk 0:01:34]} 21. Nc3 {[%clk 0:01:20]}  Qxe1 {[%clk 0:01:33]} 22. Rxe1 {[%clk 0:01:21]}  Rxe1+ {[%clk 0:01:33]} 23. Kg2 {[%clk 0:01:22]}  Ra1 {[%clk 0:01:26]} 24. a4 {[%clk 0:01:21]}  g5 {[%clk 0:01:06]} 25. h3 {[%clk 0:01:12]}  Ree1 {[%clk 0:00:56]} 26. Nd1 {[%clk 0:01:10]}  Re6 {[%clk 0:00:55]} 27. Qc3 {[%clk 0:01:09]}  Rc1 {[%clk 0:00:53]} 28. Ne3 {[%clk 0:01:09]}  Bg6 {[%clk 0:00:50]} 29. Qd2 {[%clk 0:00:57]}  Rb1 {[%clk 0:00:49]} 30. Qa5 {[%clk 0:00:58]}  Rb2 {[%clk 0:00:24]} 31. Qxc5 {[%clk 0:00:53]}  Ra2 {[%clk 0:00:23]} 32. Qxa7 {[%clk 0:00:53]}  h5 {[%clk 0:00:22]} 33. Qc5 {[%clk 0:00:50]}  g4 {[%clk 0:00:21]} 34. hxg4 {[%clk 0:00:51]}  hxg4 {[%clk 0:00:21]} 35. Nxg4 {[%clk 0:00:51]}  Nxg4 {[%clk 0:00:21]} 36. Bxg4 {[%clk 0:00:52]}  Rf6 {[%clk 0:00:22]} 37. Qc3 {[%clk 0:00:50]}  Rd6 {[%clk 0:00:19]} 38. a5 {[%clk 0:00:48]}  Rd5 {[%clk 0:00:17]} 39. b4 {[%clk 0:00:48]}  Rd6 {[%clk 0:00:14]} 40. b5 {[%clk 0:00:48]}  Rd5 {[%clk 0:00:14]} 41. Qb3 {[%clk 0:00:47]}  Rxa5 {[%clk 0:00:10]} 42. Qxd5 {[%clk 0:00:47]}  Kh7 {[%clk 0:00:09]} 43. c4 {[%clk 0:00:47]}  Ra3 {[%clk 0:00:08]} 44. Bf5 {[%clk 0:00:47]}  Rb3 {[%clk 0:00:07]} 45. Qxf7+ {[%clk 0:00:46]}  Kh8 {[%clk 0:00:07]} 46. Qf6+ {[%clk 0:00:46]}  Kg8 {[%clk 0:00:07]} 47. Qxg6+ {[%clk 0:00:46]}  Kf8 {[%clk 0:00:07]} 48. Be6 {[%clk 0:00:46]}  Ke7 {[%clk 0:00:08]} 49. Qf7+ {[%clk 0:00:46]}  Kd6 {[%clk 0:00:08]} 50. Qd7+ {[%clk 0:00:43]}  Kc5 {[%clk 0:00:09]} 51. d4+ {[%clk 0:00:42]}  Kb4 {[%clk 0:00:09]} 52. b6 {[%clk 0:00:43]}  Rd3 {[%clk 0:00:08]} 53. b7 {[%clk 0:00:43]}  Kc3 {[%clk 0:00:09]} 54. b8=Q {[%clk 0:00:43]}  Rd1 {[%clk 0:00:09]} 55. Qdb7 {[%clk 0:00:42]}  Kd2 {[%clk 0:00:09]} 56. Qb2+ {[%clk 0:00:42]}  Ke1 {[%clk 0:00:09]} 57. Qe5# {[%clk 0:00:42]} 1-0


[Site "https://www.chess.com"]

[Event "Titled Tuesday Blitz June 27 Early 2023"]
[White "Kilic, Eray"]
[Black "Ter-Sahakyan, Samvel"]
[WhiteFideId "44517173"]
[BlackFideId "13302531"]
[WhiteElo "2793"]
[BlackElo "2903"]
[Result "0-1"]
[Round "9"]
[TimeControl "180+2"]
[Date "2023.06.27"]
[WhiteClock "0:01:15"]
[BlackClock "0:00:47"]
[Board "12"]

1. d4 {[%clk 0:03:00]}  Nf6 {[%clk 0:02:56]} 2. c4 {[%clk 0:03:00]}  e6 {[%clk 0:02:56]} 3. Nc3 {[%clk 0:02:59]}  Bb4 {[%clk 0:02:53]} 4. e3 {[%clk 0:02:59]}  O-O {[%clk 0:02:53]} 5. Bd2 {[%clk 0:02:59]}  d5 {[%clk 0:02:53]} 6. Nf3 {[%clk 0:02:58]}  b6 {[%clk 0:02:52]} 7. Bd3 {[%clk 0:02:58]}  Bb7 {[%clk 0:02:51]} 8. cxd5 {[%clk 0:02:58]}  exd5 {[%clk 0:02:51]} 9. Rc1 {[%clk 0:02:57]}  Be7 {[%clk 0:02:51]} 10. O-O {[%clk 0:02:54]}  c5 {[%clk 0:02:51]} 11. Ne5 {[%clk 0:02:54]}  Nc6 {[%clk 0:02:50]} 12. f4 {[%clk 0:02:51]}  cxd4 {[%clk 0:02:48]} 13. Nxc6 {[%clk 0:02:51]}  Bxc6 {[%clk 0:02:48]} 14. exd4 {[%clk 0:02:51]}  Rc8 {[%clk 0:02:19]} 15. f5 {[%clk 0:02:44]}  h6 {[%clk 0:02:10]} 16. Qf3 {[%clk 0:02:40]}  Bd6 {[%clk 0:02:00]} 17. Rce1 {[%clk 0:02:39]}  Qd7 {[%clk 0:01:55]} 18. Bf4 {[%clk 0:02:30]}  Bxf4 {[%clk 0:01:54]} 19. Qxf4 {[%clk 0:02:31]}  a5 {[%clk 0:01:50]} 20. Re5 {[%clk 0:02:31]}  b5 {[%clk 0:01:50]} 21. Ne2 {[%clk 0:02:19]}  b4 {[%clk 0:01:49]} 22. Ng3 {[%clk 0:02:18]}  Bb5 {[%clk 0:01:48]} 23. Qf3 {[%clk 0:02:10]}  Bxd3 {[%clk 0:01:42]} 24. Qxd3 {[%clk 0:02:11]}  Qa4 {[%clk 0:01:39]} 25. a3 {[%clk 0:01:45]}  Qc2 {[%clk 0:01:31]} 26. Qxc2 {[%clk 0:01:31]}  Rxc2 {[%clk 0:01:32]} 27. axb4 {[%clk 0:01:32]}  axb4 {[%clk 0:01:32]} 28. b3 {[%clk 0:01:32]}  Rfc8 {[%clk 0:01:25]} 29. Ne2 {[%clk 0:01:26]}  Ng4 {[%clk 0:01:13]} 30. Nf4 {[%clk 0:01:19]}  Nxe5 {[%clk 0:01:12]} 31. dxe5 {[%clk 0:01:19]}  d4 {[%clk 0:01:11]} 32. Nd5 {[%clk 0:01:18]}  Kf8 {[%clk 0:00:58]} 33. e6 {[%clk 0:01:18]}  Rc1 {[%clk 0:00:54]} 34. exf7 {[%clk 0:01:17]}  d3 {[%clk 0:00:47]} 35. Kf2 {[%clk 0:01:15]}  Rxf1+ {[%clk 0:00:46]} 36. Kxf1 {[%clk 0:01:16]}  Rc1+ {[%clk 0:00:46]} 37. Kf2 {[%clk 0:01:15]}  d2 {[%clk 0:00:47]} 0-1


[Site "https://www.chess.com"]

[Event "Titled Tuesday Blitz June 27 Early 2023"]
[White "Harsh Suresh"]
[Black "Atakhan, Abtin"]
[WhiteFideId "45018464"]
[BlackFideId "22502203"]
[WhiteElo "2824"]
[BlackElo "2761"]
[Result "1-0"]
[Round "9"]
[TimeControl "180+2"]
[Date "2023.06.27"]
[WhiteClock "0:01:23"]
[BlackClock "0:00:28"]
[Board "14"]

1. e4 {[%clk 0:03:00]}  c5 {[%clk 0:03:00]} 2. Nc3 {[%clk 0:03:01]}  Nc6 {[%clk 0:03:00]} 3. Bb5 {[%clk 0:03:00]}  Nd4 {[%clk 0:03:00]} 4. Bc4 {[%clk 0:03:00]}  e6 {[%clk 0:02:59]} 5. Nf3 {[%clk 0:03:00]}  a6 {[%clk 0:02:58]} 6. Nxd4 {[%clk 0:02:59]}  cxd4 {[%clk 0:02:57]} 7. Ne2 {[%clk 0:03:00]}  Nf6 {[%clk 0:02:51]} 8. d3 {[%clk 0:03:00]}  b5 {[%clk 0:02:34]} 9. Bb3 {[%clk 0:03:00]}  Qb6 {[%clk 0:02:35]} 10. a4 {[%clk 0:02:59]}  Bb7 {[%clk 0:02:32]} 11. O-O {[%clk 0:02:58]}  d5 {[%clk 0:02:27]} 12. axb5 {[%clk 0:02:48]}  axb5 {[%clk 0:02:23]} 13. Rxa8+ {[%clk 0:02:49]}  Bxa8 {[%clk 0:02:24]} 14. e5 {[%clk 0:02:35]}  Nd7 {[%clk 0:02:17]} 15. f4 {[%clk 0:02:35]}  Be7 {[%clk 0:01:51]} 16. Qe1 {[%clk 0:02:34]}  Nc5 {[%clk 0:01:47]} 17. Bd2 {[%clk 0:02:31]}  Nxb3 {[%clk 0:01:40]} 18. cxb3 {[%clk 0:02:32]}  b4 {[%clk 0:01:36]} 19. Qf2 {[%clk 0:02:27]}  Bc5 {[%clk 0:01:33]} 20. f5 {[%clk 0:02:27]}  exf5 {[%clk 0:01:30]} 21. Qxf5 {[%clk 0:02:27]}  O-O {[%clk 0:01:31]} 22. Nf4 {[%clk 0:02:09]}  Re8 {[%clk 0:00:59]} 23. Rf3 {[%clk 0:01:39]}  Bf8 {[%clk 0:00:47]} 24. Nh5 {[%clk 0:01:30]}  Qg6 {[%clk 0:00:43]} 25. Nf6+ {[%clk 0:01:30]}  gxf6 {[%clk 0:00:38]} 26. Rg3 {[%clk 0:01:30]}  Rxe5 {[%clk 0:00:34]} 27. Rxg6+ {[%clk 0:01:24]}  hxg6 {[%clk 0:00:35]} 28. Qc8 {[%clk 0:01:25]}  Bc6 {[%clk 0:00:28]} 29. Qxc6 {[%clk 0:01:23]} 1-0


[Site "https://www.chess.com"]

[Event "Titled Tuesday Blitz June 27 Early 2023"]
[White "Sethuraman, S.P."]
[Black "Postny, Evgeny"]
[WhiteFideId "5021596"]
[BlackFideId "2804344"]
[WhiteElo "2818"]
[BlackElo "2741"]
[Result "0-1"]
[Round "9"]
[TimeControl "180+2"]
[Date "2023.06.27"]
[WhiteClock "0:00:13"]
[BlackClock "0:00:09"]
[Board "15"]

1. e4 {[%clk 0:03:00]}  e5 {[%clk 0:03:00]} 2. Nf3 {[%clk 0:03:00]}  Nc6 {[%clk 0:03:00]} 3. Bc4 {[%clk 0:03:00]}  Nf6 {[%clk 0:03:00]} 4. d3 {[%clk 0:03:00]}  Be7 {[%clk 0:03:00]} 5. O-O {[%clk 0:02:59]}  d6 {[%clk 0:03:01]} 6. a4 {[%clk 0:02:58]}  O-O {[%clk 0:03:01]} 7. Re1 {[%clk 0:02:58]}  Be6 {[%clk 0:02:59]} 8. Nbd2 {[%clk 0:02:52]}  h6 {[%clk 0:02:57]} 9. a5 {[%clk 0:02:50]}  a6 {[%clk 0:02:57]} 10. c3 {[%clk 0:02:50]}  Nh7 {[%clk 0:02:49]} 11. Bxe6 {[%clk 0:02:37]}  fxe6 {[%clk 0:02:50]} 12. Nc4 {[%clk 0:02:38]}  Bg5 {[%clk 0:02:44]} 13. d4 {[%clk 0:02:17]}  Bxc1 {[%clk 0:02:42]} 14. Rxc1 {[%clk 0:02:16]}  exd4 {[%clk 0:02:38]} 15. cxd4 {[%clk 0:02:14]}  Ng5 {[%clk 0:02:33]} 16. Nxg5 {[%clk 0:01:58]}  Qxg5 {[%clk 0:02:34]} 17. d5 {[%clk 0:01:51]}  exd5 {[%clk 0:02:18]} 18. exd5 {[%clk 0:01:52]}  Na7 {[%clk 0:02:13]} 19. Ne3 {[%clk 0:01:34]}  Nb5 {[%clk 0:02:11]} 20. Rc4 {[%clk 0:01:32]}  Rf7 {[%clk 0:02:03]} 21. h4 {[%clk 0:01:31]}  Qf6 {[%clk 0:01:56]} 22. Qd2 {[%clk 0:01:30]}  Raf8 {[%clk 0:01:55]} 23. Re2 {[%clk 0:01:25]}  Qg6 {[%clk 0:01:48]} 24. Rg4 {[%clk 0:01:22]}  Qb1+ {[%clk 0:01:44]} 25. Kh2 {[%clk 0:01:21]}  Rf4 {[%clk 0:01:35]} 26. Rxf4 {[%clk 0:01:08]}  Rxf4 {[%clk 0:01:36]} 27. Nc2 {[%clk 0:01:01]}  Rxh4+ {[%clk 0:01:28]} 28. Kg3 {[%clk 0:01:01]}  Qh1 {[%clk 0:01:23]} 29. Re8+ {[%clk 0:00:54]}  Kf7 {[%clk 0:01:14]} 30. Qe3 {[%clk 0:00:53]}  Qh2+ {[%clk 0:00:21]} 31. Kf3 {[%clk 0:00:53]}  Qf4+ {[%clk 0:00:20]} 32. Qxf4+ {[%clk 0:00:40]}  Rxf4+ {[%clk 0:00:21]} 33. Kxf4 {[%clk 0:00:41]}  Kxe8 {[%clk 0:00:21]} 34. Ke4 {[%clk 0:00:38]}  Kf7 {[%clk 0:00:20]} 35. Ne3 {[%clk 0:00:38]}  g6 {[%clk 0:00:18]} 36. f4 {[%clk 0:00:34]}  c6 {[%clk 0:00:14]} 37. g4 {[%clk 0:00:31]}  h5 {[%clk 0:00:14]} 38. gxh5 {[%clk 0:00:27]}  gxh5 {[%clk 0:00:15]} 39. Nf5 {[%clk 0:00:26]}  Kf6 {[%clk 0:00:13]} 40. Nh4 {[%clk 0:00:24]}  Nc7 {[%clk 0:00:10]} 41. dxc6 {[%clk 0:00:24]}  bxc6 {[%clk 0:00:11]} 42. Nf3 {[%clk 0:00:20]}  Ne6 {[%clk 0:00:09]} 43. Nh4 {[%clk 0:00:19]}  d5+ {[%clk 0:00:09]} 44. Ke3 {[%clk 0:00:20]}  c5 {[%clk 0:00:09]} 45. b3 {[%clk 0:00:19]}  Nd4 {[%clk 0:00:08]} 46. b4 {[%clk 0:00:17]}  Nc2+ {[%clk 0:00:08]} 47. Kd2 {[%clk 0:00:17]}  Nxb4 {[%clk 0:00:09]} 48. Nf3 {[%clk 0:00:17]}  Nc6 {[%clk 0:00:10]} 49. Ng5 {[%clk 0:00:17]}  Nxa5 {[%clk 0:00:09]} 50. Nf3 {[%clk 0:00:16]}  Nc6 {[%clk 0:00:09]} 51. Kc3 {[%clk 0:00:13]}  Kf5 {[%clk 0:00:09]} 0-1


[Site "https://www.chess.com"]

[Event "Titled Tuesday Blitz June 27 Early 2023"]
[White "Vakhlamov, Igor L."]
[Black "Matinian, Nikita"]
[WhiteFideId "24126748"]
[BlackFideId "24129100"]
[WhiteElo "2794"]
[BlackElo "2737"]
[Result "1-0"]
[Round "9"]
[TimeControl "180+2"]
[Date "2023.06.27"]
[WhiteClock "0:00:42"]
[BlackClock "0:00:17"]
[Board "17"]

1. e4 {[%clk 0:03:00]}  c5 {[%clk 0:02:59]} 2. Nf3 {[%clk 0:03:00]}  e6 {[%clk 0:03:00]} 3. Nc3 {[%clk 0:03:00]}  Nc6 {[%clk 0:03:00]} 4. d4 {[%clk 0:03:01]}  cxd4 {[%clk 0:03:00]} 5. Nxd4 {[%clk 0:03:01]}  Qc7 {[%clk 0:02:59]} 6. Nxc6 {[%clk 0:03:00]}  bxc6 {[%clk 0:02:57]} 7. Bd3 {[%clk 0:02:58]}  Nf6 {[%clk 0:02:57]} 8. O-O {[%clk 0:02:57]}  d5 {[%clk 0:02:58]} 9. Re1 {[%clk 0:02:55]}  Bd6 {[%clk 0:02:49]} 10. h3 {[%clk 0:02:54]}  O-O {[%clk 0:02:48]} 11. exd5 {[%clk 0:02:51]}  Nxd5 {[%clk 0:02:41]} 12. Ne4 {[%clk 0:02:47]}  Bh2+ {[%clk 0:02:37]} 13. Kh1 {[%clk 0:02:43]}  Bf4 {[%clk 0:02:38]} 14. Qf3 {[%clk 0:02:23]}  Bxc1 {[%clk 0:02:36]} 15. Raxc1 {[%clk 0:02:24]}  e5 {[%clk 0:02:31]} 16. Nc3 {[%clk 0:01:42]}  Nxc3 {[%clk 0:02:22]} 17. bxc3 {[%clk 0:01:42]}  f5 {[%clk 0:02:21]} 18. Bc4+ {[%clk 0:01:42]}  Kh8 {[%clk 0:02:21]} 19. Rcd1 {[%clk 0:01:40]}  Rb8 {[%clk 0:02:12]} 20. Qe3 {[%clk 0:01:34]}  e4 {[%clk 0:02:06]} 21. Qc5 {[%clk 0:01:30]}  Re8 {[%clk 0:01:16]} 22. Rd6 {[%clk 0:01:04]}  Bb7 {[%clk 0:00:55]} 23. Red1 {[%clk 0:01:00]}  f4 {[%clk 0:00:46]} 24. Rd7 {[%clk 0:00:54]}  Qb6 {[%clk 0:00:46]} 25. Qg5 {[%clk 0:00:51]}  Rg8 {[%clk 0:00:30]} 26. Bxg8 {[%clk 0:00:51]}  Rxg8 {[%clk 0:00:17]} 27. Rxg7 {[%clk 0:00:42]} 1-0


[Site "https://www.chess.com"]

[Event "Titled Tuesday Blitz June 27 Early 2023"]
[White "Terry, Renato"]
[Black "Lorparizangeneh, Shahin"]
[WhiteFideId "3803457"]
[BlackFideId "12521604"]
[WhiteElo "2990"]
[BlackElo "2745"]
[Result "1-0"]
[Round "9"]
[TimeControl "180+2"]
[Date "2023.06.27"]
[WhiteClock "0:00:44"]
[BlackClock "0:00:17"]
[Board "18"]

1. e4 {[%clk 0:03:00]}  e5 {[%clk 0:02:59]} 2. Nf3 {[%clk 0:03:01]}  Nc6 {[%clk 0:02:59]} 3. c3 {[%clk 0:03:01]}  Nf6 {[%clk 0:02:59]} 4. d4 {[%clk 0:03:02]}  exd4 {[%clk 0:02:59]} 5. e5 {[%clk 0:03:03]}  Nd5 {[%clk 0:03:00]} 6. Qb3 {[%clk 0:03:03]}  Nb6 {[%clk 0:02:59]} 7. cxd4 {[%clk 0:03:03]}  d5 {[%clk 0:03:00]} 8. Bb5 {[%clk 0:03:03]}  Be7 {[%clk 0:02:58]} 9. O-O {[%clk 0:03:02]}  O-O {[%clk 0:02:58]} 10. Bxc6 {[%clk 0:03:03]}  bxc6 {[%clk 0:02:58]} 11. Qc2 {[%clk 0:03:03]}  Bg4 {[%clk 0:02:53]} 12. Nbd2 {[%clk 0:03:00]}  Qd7 {[%clk 0:02:53]} 13. b3 {[%clk 0:02:58]}  f6 {[%clk 0:02:47]} 14. a4 {[%clk 0:02:56]}  a5 {[%clk 0:02:43]} 15. Ba3 {[%clk 0:02:54]}  Bxa3 {[%clk 0:02:38]} 16. Rxa3 {[%clk 0:02:55]}  Qe7 {[%clk 0:02:15]} 17. Raa1 {[%clk 0:02:54]}  Bd7 {[%clk 0:02:16]} 18. Rac1 {[%clk 0:02:51]}  Rae8 {[%clk 0:02:12]} 19. Qc5 {[%clk 0:02:51]}  Qxc5 {[%clk 0:02:02]} 20. Rxc5 {[%clk 0:02:51]}  Ra8 {[%clk 0:02:02]} 21. Re1 {[%clk 0:02:39]}  Rfe8 {[%clk 0:02:00]} 22. h3 {[%clk 0:02:39]}  Kf7 {[%clk 0:01:54]} 23. Re3 {[%clk 0:02:39]}  Re6 {[%clk 0:01:52]} 24. g4 {[%clk 0:02:37]}  Be8 {[%clk 0:01:46]} 25. Rec3 {[%clk 0:02:35]}  Ra6 {[%clk 0:01:43]} 26. Rc1 {[%clk 0:02:29]}  Nd7 {[%clk 0:01:41]} 27. R5c3 {[%clk 0:02:28]}  Ke7 {[%clk 0:01:32]} 28. exf6+ {[%clk 0:02:27]}  gxf6 {[%clk 0:01:30]} 29. Ne1 {[%clk 0:02:08]}  Bg6 {[%clk 0:01:27]} 30. f4 {[%clk 0:02:08]}  Be4 {[%clk 0:01:06]} 31. f5 {[%clk 0:02:08]}  Rd6 {[%clk 0:01:06]} 32. Nd3 {[%clk 0:01:50]}  Rb6 {[%clk 0:00:55]} 33. Re1 {[%clk 0:01:23]}  Kf7 {[%clk 0:00:49]} 34. Nxe4 {[%clk 0:01:23]}  dxe4 {[%clk 0:00:50]} 35. Rxe4 {[%clk 0:01:24]}  Rb8 {[%clk 0:00:38]} 36. Kf2 {[%clk 0:01:21]}  Nb6 {[%clk 0:00:38]} 37. Nf4 {[%clk 0:01:19]}  Nd5 {[%clk 0:00:37]} 38. Nxd5 {[%clk 0:01:19]}  Rxd5 {[%clk 0:00:36]} 39. Rxc6 {[%clk 0:01:18]}  Rxb3 {[%clk 0:00:35]} 40. Rxc7+ {[%clk 0:01:18]}  Kf8 {[%clk 0:00:32]} 41. Rxh7 {[%clk 0:01:18]}  Rb2+ {[%clk 0:00:31]} 42. Kf3 {[%clk 0:01:15]}  Rb3+ {[%clk 0:00:31]} 43. Re3 {[%clk 0:01:13]}  Rb4 {[%clk 0:00:28]} 44. Rc3 {[%clk 0:01:10]}  Rd8 {[%clk 0:00:25]} 45. Rh8+ {[%clk 0:01:10]}  Ke7 {[%clk 0:00:24]} 46. Re3+ {[%clk 0:00:48]}  Kd7 {[%clk 0:00:22]} 47. Rxd8+ {[%clk 0:00:48]}  Kxd8 {[%clk 0:00:22]} 48. Re6 {[%clk 0:00:48]}  Rxd4 {[%clk 0:00:22]} 49. Rxf6 {[%clk 0:00:48]}  Rxa4 {[%clk 0:00:22]} 50. g5 {[%clk 0:00:44]}  Ke7 {[%clk 0:00:23]} 51. Re6+ {[%clk 0:00:44]}  Kf7 {[%clk 0:00:17]} 52. Ra6 {[%clk 0:00:44]} 1-0


[Site "https://www.chess.com"]

[Event "Titled Tuesday Blitz June 27 Early 2023"]
[White "Paravyan, David"]
[Black "De Silva, L M S T"]
[WhiteFideId "4194985"]
[BlackFideId "9953698"]
[WhiteElo "2983"]
[BlackElo "2738"]
[Result "1-0"]
[Round "9"]
[TimeControl "180+2"]
[Date "2023.06.27"]
[WhiteClock "0:02:57"]
[BlackClock "0:02:42"]
[Board "19"]

1. e4 {[%clk 0:03:00]}  e5 {[%clk 0:02:59]} 2. Nf3 {[%clk 0:02:58]}  Nc6 {[%clk 0:02:59]} 3. Bb5 {[%clk 0:02:59]}  a6 {[%clk 0:02:59]} 4. Ba4 {[%clk 0:02:59]}  Nf6 {[%clk 0:02:59]} 5. O-O {[%clk 0:03:00]}  Be7 {[%clk 0:03:00]} 6. Re1 {[%clk 0:02:59]}  b5 {[%clk 0:03:01]} 7. Bb3 {[%clk 0:02:59]}  O-O {[%clk 0:03:01]} 8. h3 {[%clk 0:02:58]}  Bb7 {[%clk 0:03:01]} 9. d3 {[%clk 0:02:59]}  d5 {[%clk 0:03:01]} 10. exd5 {[%clk 0:03:00]}  Nxd5 {[%clk 0:03:02]} 11. Nxe5 {[%clk 0:03:00]}  Nxe5 {[%clk 0:03:03]} 12. Rxe5 {[%clk 0:03:01]}  Qd6 {[%clk 0:03:04]} 13. Re1 {[%clk 0:02:59]}  Rae8 {[%clk 0:03:04]} 14. Nd2 {[%clk 0:02:59]}  c5 {[%clk 0:03:04]} 15. Ne4 {[%clk 0:02:59]}  Qc6 {[%clk 0:03:02]} 16. c4 {[%clk 0:02:59]}  Nb6 {[%clk 0:02:52]} 17. f3 {[%clk 0:02:58]}  f5 {[%clk 0:02:42]} 18. cxb5+ {[%clk 0:02:57]} 1-0


[Site "https://www.chess.com"]